lending/lending_fUSD_20241229
["ID","MTS","AMOUNT","RATE_DAILY","PERIOD"]
[346984097,1735450245913,-336.67571877,0.00012981,2]
[346984154,1735450452734,3000.0,0.00024675,120]
[346984229,1735451431979,-549.9,9.986e-05,2]
[346984230,1735451431988,-251.46,0.00010137,2]
[346984231,1735451431998,-250.0,0.00011617,2]
[346984232,1735451432008,-477.83,0.00011659,2]
[346984233,1735451432017,-1000.0,0.00011796,2]
[346984234,1735451432028,-450.0,0.00012,2]
[346984235,1735451432037,-150.0,0.00012082,2]
[346984236,1735451432047,-377.03,0.00012096,2]
[346984237,1735451432056,-368.76,0.00012097,2]
[346984238,1735451432066,-370.79,0.00012099,2]
[346984239,1735451432306,-382.4,0.00012102,2]
[346984240,1735451432316,-381.09,0.00012106,2]
[346984241,1735451432325,-379.02,0.00012115,2]
[346984242,1735451432334,-369.17,0.00012128,2]
[346984243,1735451432343,-378.85,0.00012151,2]
[346984244,1735451432352,-377.64,0.00012188,2]
[346984245,1735451432362,-373.26,0.00012188,2]
[346984246,1735451432371,-374.31,0.00012188,2]
[346984247,1735451432380,-377.43,0.00012188,2]
[346984248,1735451432390,-368.79,0.00012188,2]
[346984249,1735451432401,-370.76,0.00012188,2]
[346984250,1735451432411,-379.29,0.00012188,2]
[346984251,1735451432419,-367.67,0.00012188,2]
[346984252,1735451432429,-150.68,0.000122,2]
[346984253,1735451432438,-549.9,0.0001225,2]
[346984254,1735451432447,-398.925,0.0001235,2]
[346984255,1735451432457,-1789.59,0.00012978,2]
[346984256,1735451432466,-1253.45,0.00012978,2]
[346984257,1735451432476,-960.74,0.00012978,2]
[346984258,1735451432485,-1885.71,0.00012978,2]
[346984259,1735451432494,-500.0,0.00012978,2]
[346984260,1735451432504,-3752.17,0.00012978,2]
[346984262,1735451432513,-500.0,0.00012978,2]
[346984264,1735451432522,-577.21,0.00012978,2]
[346984267,1735451432531,-5575.96,0.00012978,2]
[346984269,1735451432540,-2327.41,0.00012978,2]
[346984270,1735451432550,-3235.89,0.00012978,2]
[346984272,1735451432559,-5722.2,0.00012978,2]
[346984275,1735451432568,-1848.91,0.00012978,2]
[346984277,1735451432579,-3938.01,0.00012978,2]
[346984279,1735451432588,-1431.27,0.00012978,2]
[346984281,1735451432597,-511.81,0.00012978,2]
[346984283,1735451432607,-1462.81,0.00012978,2]
[346984284,1735451432617,-1590.21,0.00012978,2]
[346984287,1735451432627,-500.0,0.00012978,2]
[346984288,1735451432636,-871.45,0.00012978,2]
[346984289,1735451432645,-2781.99,0.00012978,2]
[346984290,1735451432654,-2492.1236078,0.00012979,2]
[346984291,1735451432666,-136628.1313922,0.00012979,2]
[346984292,1735451432677,-1024.99289706,0.00012979,2]
[346984293,1735451432688,-451.72001,0.00012979,2]
[346984294,1735451432710,-1289.0,0.00012979,2]
[346984295,1735451432722,-865.6050095,0.00012979,2]
[346984296,1735451432732,-1006.36,0.00012979,2]
[346984297,1735451432743,-342.38296478,0.00012979,2]
[346984298,1735451432770,-4864.0337004,0.00012979,2]
[346984299,1735451432781,-618.27929359,0.00012979,2]
[346984505,1735451440117,-390.71099736,0.00012979,2]
[346984687,1735451446092,-481.4109456,0.00012978,2]
[346984688,1735451446256,-498.2990544,0.00012978,2]
[346984689,1735451446266,-374.01,0.00012979,2]
[346984690,1735451446275,-1432.5709456,0.00012979,2]
[346984698,1735451653276,4819.17,0.00024675,120]
[346984707,1735452137776,-1260.31,0.00012979,7]
[346984708,1735452179064,-10000.0,0.00013,5]
[346984710,1735452250667,3000.0,0.00024675,120]
[346984760,1735452632264,-494.91,0.00010149,2]
[346984761,1735452632274,-450.0,0.00012,2]
[346984762,1735452632284,-250.0,0.00012042,2]
[346984763,1735452632295,-750.10491945,0.00012053,2]
[346984764,1735452632324,-249.89508055,0.00012053,2]
[346984765,1735452632333,-231.32734171,0.00012055,2]
[346984766,1735452632345,-65.79265829,0.00012055,2]
[346984767,1735452632354,-382.119,0.0001233,2]
[346984768,1735452632364,-494.91,0.00012413,2]
[346984769,1735452632373,-2337.79178982,0.000128,2]
[346984770,1735452632383,-500.0,0.00012977,2]
[346984771,1735452632392,-3595.83,0.00012977,2]
[346984772,1735452632402,-11069.6766043,0.00012977,2]
[346984773,1735452632411,-553.16,0.00012977,2]
[346984774,1735452632420,-5343.63,0.00012977,2]
[346984775,1735452632429,-2230.44,0.00012977,2]
[346984776,1735452632438,-5483.77,0.00012977,2]
[346984777,1735452632447,-1771.88,0.00012977,2]
[346984778,1735452632457,-2837.0,0.00012977,2]
[346984779,1735452632466,-500.0,0.00012977,2]
[346984780,1735452632476,-1401.86,0.00012977,2]
[346984781,1735452632485,-500.0,0.00012977,2]
[346984782,1735452632494,-835.14,0.00012977,2]
[346984783,1735452632503,-549.03,0.00012977,2]
[346984784,1735452632513,-2666.07,0.00012977,2]
[346984785,1735452632522,-1323.23,0.00012977,2]
[346984786,1735452632532,-500.0,0.00012977,2]
[346984787,1735452632541,-562.9,0.00012977,2]
[346984788,1735452632551,-373.1,0.00012977,2]
[346984789,1735452632560,-369.42,0.00012978,2]
[346984790,1735452632569,-1246.0618039,0.00012978,2]
[346984791,1735452632578,-99447.80991308,0.00012978,2]
[346984792,1735452632588,-368.71,0.00012978,2]
[346984793,1735452632598,-1715.02,0.00012978,2]
[346984794,1735452632611,-1201.22,0.00012978,2]
[346984795,1735452632620,-920.71,0.00012978,2]
[346984796,1735452632630,-1807.14,0.00012978,2]
[346984797,1735452632639,-500.0,0.00012978,2]
[346984798,1735452632648,-3101.06,0.00012978,2]
[346984799,1735452632658,-1371.63,0.00012978,2]
[346984800,1735452632668,-1523.96,0.00012978,2]
[346984801,1735452632677,-2632.14,0.00012978,2]
[346984802,1735452632688,-1425.76,0.00012978,2]
[346984803,1735452632697,-500.0,0.00012978,2]
[346984804,1735452632706,-500.0,0.00012978,2]
[346984805,1735452632716,-500.0,0.00012978,2]
[346984806,1735452632726,-1147.14,0.00012978,2]
[346984807,1735452632735,-500.0,0.00012978,2]
[346984808,1735452632745,-500.0,0.00012978,2]
[346984809,1735452632754,-500.0,0.00012978,2]
[346984810,1735452632764,-640.51,0.00012978,2]
[346984811,1735452632774,-500.0,0.00012978,2]
[346984812,1735452632784,-500.0,0.00012978,2]
[346984813,1735452632793,-550.18,0.00012978,2]
[346984814,1735452632803,-1183.21,0.00012978,2]
[346984815,1735452632813,-534.46,0.00012978,2]
[346984816,1735452632823,-500.0,0.00012978,2]
[346984817,1735452632832,-500.0,0.00012978,2]
[346984818,1735452632842,-500.0,0.00012978,2]
[346984819,1735452632851,-500.0,0.00012978,2]
[346984820,1735452632861,-155.399951,0.00012978,2]
[346984821,1735452632870,-500.0,0.00012978,2]
[346984822,1735452632879,-156.141841,0.00012978,2]
[346984823,1735452632888,-863.711882,0.00012978,2]
[346984824,1735452632898,-500.0,0.00012978,2]
[346984825,1735452632907,-465.63619368,0.00012978,2]
[346984826,1735452632916,-500.0,0.00012978,2]
[346984827,1735452632925,-500.0,0.00012978,2]
[346984828,1735452632935,-624.403311,0.00012978,2]
[346984829,1735452632944,-724.15,0.00012978,2]
[346984830,1735452632953,-500.0,0.00012978,2]
[346984831,1735452632962,-500.0,0.00012978,2]
[346984832,1735452632971,-500.0,0.00012978,2]
[346984833,1735452632980,-500.0,0.00012978,2]
[346984834,1735452632990,-500.0,0.00012978,2]
[346984835,1735452632999,-8830.24,0.00012978,2]
[346984836,1735452633008,-500.0,0.00012978,2]
[346984837,1735452633017,-500.0,0.00012978,2]
[346984838,1735452633027,-500.0,0.00012978,2]
[346984839,1735452633036,-500.0,0.00012978,2]
[346984840,1735452633045,-500.0,0.00012978,2]
[346984841,1735452633054,-928.89,0.00012978,2]
[346984842,1735452633064,-500.0,0.00012978,2]
[346984843,1735452633073,-500.0,0.00012978,2]
[346984844,1735452633082,-500.0,0.00012978,2]
[346984845,1735452633092,-500.0,0.00012978,2]
[346984846,1735452633101,-500.0,0.00012978,2]
[346984847,1735452633110,-500.0,0.00012978,2]
[346984848,1735452633119,-518.46558863,0.00012978,2]
[346984849,1735452633129,-500.0,0.00012978,2]
[346984850,1735452633138,-500.0,0.00012978,2]
[346984851,1735452633148,-848.03,0.00012978,2]
[346984852,1735452633157,-500.0,0.00012978,2]
[346984853,1735452633167,-840.68,0.00012978,2]
[346984854,1735452633176,-500.0,0.00012978,2]
[346984855,1735452633185,-500.0,0.00012978,2]
[346984856,1735452633194,-1046.92,0.00012978,2]
[346984857,1735452633204,-500.0,0.00012978,2]
[346984858,1735452633213,-503.244876,0.00012978,2]
[346984859,1735452633222,-570.74,0.00012978,2]
[346984860,1735452633232,-500.0,0.00012978,2]
[346984861,1735452633241,-500.0,0.00012978,2]
[346984862,1735452633251,-500.0,0.00012978,2]
[346984863,1735452633260,-500.0,0.00012978,2]
[346984864,1735452633271,-500.0,0.00012978,2]
[346984865,1735452633283,-500.0,0.00012978,2]
[346984866,1735452633292,-500.0,0.00012978,2]
[346984867,1735452633301,-500.0,0.00012978,2]
[346984868,1735452633311,-500.0,0.00012978,2]
[346984869,1735452633320,-500.0,0.00012978,2]
[346984870,1735452633330,-273.53589091,0.00012978,2]
[346984871,1735452633340,-500.0,0.00012978,2]
[346984872,1735452633349,-500.0,0.00012978,2]
[346984873,1735452633359,-500.0,0.00012978,2]
[346984874,1735452633368,-500.0,0.00012978,2]
[346984875,1735452633378,-500.0,0.00012978,2]
[346984876,1735452633388,-500.0,0.00012978,2]
[346984877,1735452633398,-505.48262766,0.00012978,2]
[346984878,1735452633407,-500.0,0.00012978,2]
[346984879,1735452633418,-500.0,0.00012978,2]
[346984880,1735452633428,-500.0,0.00012978,2]
[346984881,1735452633437,-500.0,0.00012978,2]
[346984882,1735452633446,-1394.92,0.00012978,2]
[346984883,1735452633456,-382.27964036,0.00012978,2]
[346984884,1735452633466,-500.0,0.00012978,2]
[346984885,1735452633475,-506.8610466,0.00012978,2]
[346984886,1735452633485,-500.0,0.00012978,2]
[346984887,1735452633494,-424.69910696,0.00012978,2]
[346984888,1735452633504,-1307.82,0.00012978,2]
[346984889,1735452633513,-500.0,0.00012978,2]
[346984890,1735452633522,-500.0,0.00012978,2]
[346984891,1735452633532,-180.0649147,0.00012978,2]
[346984892,1735452633541,-500.0,0.00012978,2]
[346984893,1735452633550,-703.85,0.00012978,2]
[346984894,1735452633559,-500.0,0.00012978,2]
[346984895,1735452633568,-500.0,0.00012978,2]
[346984896,1735452633577,-500.0,0.00012978,2]
[346984897,1735452633587,-501.79002601,0.00012978,2]
[346984898,1735452633596,-500.0,0.00012978,2]
[346984899,1735452633607,-500.0,0.00012978,2]
[346984900,1735452633617,-500.0,0.00012978,2]
[346984901,1735452633627,-500.0,0.00012978,2]
[346984902,1735452633636,-500.0,0.00012978,2]
[346984903,1735452633647,-198.66776569,0.00012978,2]
[346984904,1735452633656,-500.0,0.00012978,2]
[346984905,1735452633665,-500.0,0.00012978,2]
[346984906,1735452633675,-572.9,0.00012978,2]
[346984907,1735452633686,-500.0,0.00012978,2]
[346984908,1735452633695,-500.0,0.00012978,2]
[346984909,1735452633705,-1554.86,0.00012978,2]
[346984910,1735452633715,-500.0,0.00012978,2]
[346984911,1735452633724,-525.44196606,0.00012978,2]
[346984912,1735452633733,-428.78519179,0.00012978,2]
[346984913,1735452633743,-926.66,0.00012978,2]
[346984914,1735452633752,-500.0,0.00012978,2]
[346984915,1735452633762,-835.37,0.00012978,2]
[346984916,1735452633771,-508.75077606,0.00012978,2]
[346984917,1735452633782,-500.0,0.00012978,2]
[346984918,1735452633791,-500.0,0.00012978,2]
[346984919,1735452633801,-500.0,0.00012978,2]
[346984920,1735452633810,-500.0,0.00012978,2]
[346984921,1735452633819,-500.0,0.00012978,2]
[346984922,1735452633828,-544.33,0.00012978,2]
[346984923,1735452633838,-500.0,0.00012978,2]
[346984924,1735452633847,-500.0,0.00012978,2]
[346984925,1735452633857,-500.0,0.00012978,2]
[346984926,1735452633866,-500.0,0.00012978,2]
[346984927,1735452633876,-500.0,0.00012978,2]
[346984928,1735452633885,-500.0,0.00012978,2]
[346984929,1735452633895,-415.22912386,0.00012978,2]
[346984930,1735452633904,-830.4,0.00012978,2]
[346984931,1735452633915,-500.0,0.00012978,2]
[346984932,1735452633924,-500.0,0.00012978,2]
[346984933,1735452633935,-891.82,0.00012978,2]
[346984934,1735452633944,-500.0,0.00012978,2]
[346984935,1735452633954,-500.0,0.00012978,2]
[346984936,1735452633964,-500.0,0.00012978,2]
[346984937,1735452633973,-500.0,0.00012978,2]
[346984938,1735452633982,-500.0,0.00012978,2]
[346984939,1735452633992,-500.0,0.00012978,2]
[346984940,1735452634001,-500.0,0.00012978,2]
[346984941,1735452634010,-500.0,0.00012978,2]
[346984942,1735452634019,-500.0,0.00012978,2]
[346984943,1735452634028,-500.0,0.00012978,2]
[346984944,1735452634038,-2241.53,0.00012978,2]
[346984945,1735452634048,-500.0,0.00012978,2]
[346984946,1735452634057,-500.0,0.00012978,2]
[346984947,1735452634066,-500.0,0.00012978,2]
[346984948,1735452634075,-500.0,0.00012978,2]
[346984949,1735452634084,-500.0,0.00012978,2]
[346984950,1735452634095,-500.0,0.00012978,2]
[346984951,1735452634104,-500.0,0.00012978,2]
[346984952,1735452634114,-500.0,0.00012978,2]
[346984953,1735452634123,-500.0,0.00012978,2]
[346984954,1735452634133,-500.0,0.00012978,2]
[346984955,1735452634143,-500.0,0.00012978,2]
[346984956,1735452634152,-500.0,0.00012978,2]
[346984957,1735452634162,-500.0,0.00012978,2]
[346984958,1735452634171,-500.0,0.00012978,2]
[346984959,1735452634181,-500.0,0.00012978,2]
[346984960,1735452634190,-500.0,0.00012978,2]
[346984961,1735452634200,-500.0,0.00012978,2]
[346984962,1735452634209,-500.0,0.00012978,2]
[346984963,1735452634218,-500.0,0.00012978,2]
[346984964,1735452634227,-500.0,0.00012978,2]
[346984965,1735452634237,-503.52981887,0.00012978,2]
[346984966,1735452634246,-500.0,0.00012978,2]
[346984967,1735452634256,-4345.41,0.00012978,2]
[346984968,1735452634266,-500.0,0.00012978,2]
[346984969,1735452634275,-500.0,0.00012978,2]
[346984970,1735452634285,-361.1390483,0.00012978,2]
[346984971,1735452634295,-500.0,0.00012978,2]
[346984972,1735452634305,-3490.62,0.00012978,2]
[346984973,1735452634315,-500.0,0.00012978,2]
[346984974,1735452634325,-500.0,0.00012978,2]
[346984975,1735452634335,-500.0,0.00012978,2]
[346984976,1735452634344,-500.0,0.00012978,2]
[346984977,1735452634353,-215.52448381,0.00012978,2]
[346984978,1735452634363,-500.0,0.00012978,2]
[346984979,1735452634372,-663.85,0.00012978,2]
[346984980,1735452634382,-500.0,0.00012978,2]
[346984981,1735452634391,-500.0,0.00012978,2]
[346984982,1735452634401,-500.0,0.00012978,2]
[346984983,1735452634411,-500.0,0.00012978,2]
[346984984,1735452634422,-524.84,0.00012978,2]
[346984985,1735452634432,-500.0,0.00012978,2]
[346984986,1735452634441,-500.0,0.00012978,2]
[346984987,1735452634451,-500.0,0.00012978,2]
[346984988,1735452634461,-500.0,0.00012978,2]
[346984989,1735452634471,-1003.78,0.00012978,2]
[346984990,1735452634481,-898.8,0.00012978,2]
[346984991,1735452634490,-500.0,0.00012978,2]
[346984992,1735452634500,-574.39,0.00012978,2]
[346984993,1735452634509,-500.0,0.00012978,2]
[346984994,1735452634519,-500.0,0.00012978,2]
[346984995,1735452634528,-500.0,0.00012978,2]
[346984996,1735452634538,-500.0,0.00012978,2]
[346984997,1735452634547,-500.0,0.00012978,2]
[346984998,1735452634556,-500.0,0.00012978,2]
[346984999,1735452634567,-500.0,0.00012978,2]
[346985000,1735452634576,-500.0,0.00012978,2]
[346985001,1735452634585,-500.0,0.00012978,2]
[346985002,1735452634595,-500.0,0.00012978,2]
[346985003,1735452634604,-842.86,0.00012978,2]
[346985004,1735452634616,-500.0,0.00012978,2]
[346985005,1735452634626,-242.6474582,0.00012978,2]
[346985006,1735452634635,-500.0,0.00012978,2]
[346985007,1735452634644,-222.28760019,0.00012978,2]
[346985008,1735452634653,-500.0,0.00012978,2]
[346985009,1735452634664,-500.0,0.00012978,2]
[346985010,1735452634673,-500.0,0.00012978,2]
[346985011,1735452634684,-500.0,0.00012978,2]
[346985012,1735452634693,-500.0,0.00012978,2]
[346985013,1735452634702,-500.0,0.00012978,2]
[346985014,1735452634711,-500.0,0.00012978,2]
[346985015,1735452634721,-500.0,0.00012978,2]
[346985016,1735452634731,-825.52,0.00012978,2]
[346985017,1735452634740,-500.0,0.00012978,2]
[346985018,1735452634749,-500.0,0.00012978,2]
[346985019,1735452634759,-500.0,0.00012978,2]
[346985020,1735452634768,-500.0,0.00012978,2]
[346985021,1735452634777,-501.69073926,0.00012978,2]
[346985022,1735452634787,-500.0,0.00012978,2]
[346985023,1735452634797,-500.0,0.00012978,2]
[346985024,1735452634806,-500.0,0.00012978,2]
[346985025,1735452634815,-500.0,0.00012978,2]
[346985026,1735452634824,-500.0,0.00012978,2]
[346985027,1735452634834,-500.0,0.00012978,2]
[346985028,1735452634843,-500.0,0.00012978,2]
[346985029,1735452634852,-500.0,0.00012978,2]
[346985030,1735452634861,-479.06742108,0.00012978,2]
[346985031,1735452634871,-749.81,0.00012978,2]
[346985032,1735452634880,-500.0,0.00012978,2]
[346985033,1735452634889,-500.0,0.00012978,2]
[346985034,1735452634899,-500.0,0.00012978,2]
[346985035,1735452634909,-500.0,0.00012978,2]
[346985036,1735452634919,-500.0,0.00012978,2]
[346985037,1735452634928,-500.0,0.00012978,2]
[346985038,1735452634937,-500.0,0.00012978,2]
[346985039,1735452634946,-648.12,0.00012978,2]
[346985040,1735452634955,-500.0,0.00012978,2]
[346985041,1735452634964,-500.0,0.00012978,2]
[346985042,1735452634974,-505.76537573,0.00012978,2]
[346985043,1735452634983,-500.0,0.00012978,2]
[346985044,1735452634992,-500.0,0.00012978,2]
[346985045,1735452635001,-500.0,0.00012978,2]
[346985046,1735452635011,-500.0,0.00012978,2]
[346985047,1735452635020,-500.0,0.00012978,2]
[346985048,1735452635029,-500.0,0.00012978,2]
[346985049,1735452635038,-558.06,0.00012978,2]
[346985050,1735452635047,-165.340163,0.00012978,2]
[346985051,1735452635056,-165.340163,0.00012978,2]
[346985052,1735452635066,-500.0,0.00012978,2]
[346985053,1735452635075,-165.340163,0.00012978,2]
[346985054,1735452635084,-500.0,0.00012978,2]
[346985055,1735452635094,-165.340163,0.00012978,2]
[346985056,1735452635103,-500.0,0.00012978,2]
[346985057,1735452635113,-500.0,0.00012978,2]
[346985058,1735452635122,-500.0,0.00012978,2]
[346985059,1735452635132,-755.36,0.00012978,2]
[346985060,1735452635141,-1149.04,0.00012978,2]
[346985061,1735452635150,-151.0,0.00012978,2]
[346985062,1735452635159,-151.0,0.00012978,2]
[346985063,1735452635168,-151.0,0.00012978,2]
[346985064,1735452635178,-506.10395234,0.00012978,2]
[346985065,1735452635188,-500.0,0.00012978,2]
[346985066,1735452635198,-500.0,0.00012978,2]
[346985067,1735452635209,-500.0,0.00012978,2]
[346985068,1735452635218,-500.0,0.00012978,2]
[346985069,1735452635229,-500.0,0.00012978,2]
[346985070,1735452635244,-500.0,0.00012978,2]
[346985071,1735452635254,-500.0,0.00012978,2]
[346985072,1735452635264,-500.0,0.00012978,2]
[346985073,1735452635273,-500.0,0.00012978,2]
[346985074,1735452635283,-500.0,0.00012978,2]
[346985075,1735452635293,-500.0,0.00012978,2]
[346985076,1735452635303,-500.0,0.00012978,2]
[346985077,1735452635314,-500.0,0.00012978,2]
[346985078,1735452635324,-500.0,0.00012978,2]
[346985079,1735452635333,-500.0,0.00012978,2]
[346985080,1735452635342,-500.0,0.00012978,2]
[346985081,1735452635352,-501.63015256,0.00012978,2]
[346985082,1735452635361,-500.0,0.00012978,2]
[346985083,1735452635370,-500.0,0.00012978,2]
[346985084,1735452635379,-2541.62,0.00012978,2]
[346985085,1735452635389,-500.0,0.00012978,2]
[346985086,1735452635398,-500.0,0.00012978,2]
[346985087,1735452635408,-736.78,0.00012978,2]
[346985088,1735452635418,-500.0,0.00012978,2]
[346985089,1735452635427,-552.35,0.00012978,2]
[346985090,1735452635437,-500.0,0.00012978,2]
[346985091,1735452635447,-466.69636438,0.00012978,2]
[346985092,1735452635456,-500.0,0.00012978,2]
[346985093,1735452635466,-500.0,0.00012978,2]
[346985094,1735452635475,-500.0,0.00012978,2]
[346985095,1735452635485,-500.0,0.00012978,2]
[346985096,1735452635494,-500.0,0.00012978,2]
[346985097,1735452635504,-500.0,0.00012978,2]
[346985098,1735452635513,-500.0,0.00012978,2]
[346985099,1735452635522,-500.0,0.00012978,2]
[346985100,1735452635531,-500.0,0.00012978,2]
[346985101,1735452635541,-500.0,0.00012978,2]
[346985102,1735452635551,-610.12,0.00012978,2]
[346985103,1735452635560,-500.0,0.00012978,2]
[346985104,1735452635570,-524.10580789,0.00012978,2]
[346985105,1735452635579,-500.0,0.00012978,2]
[346985106,1735452635589,-500.0,0.00012978,2]
[346985107,1735452635598,-871.38,0.00012978,2]
[346985108,1735452635611,-500.0,0.00012978,2]
[346985109,1735452635620,-500.0,0.00012978,2]
[346985110,1735452635630,-500.0,0.00012978,2]
[346985111,1735452635639,-500.0,0.00012978,2]
[346985112,1735452635650,-588.85,0.00012978,2]
[346985113,1735452635659,-674.54,0.00012978,2]
[346985114,1735452635668,-500.0,0.00012978,2]
[346985115,1735452635678,-500.0,0.00012978,2]
[346985116,1735452635688,-500.0,0.00012978,2]
[346985117,1735452635698,-500.0,0.00012978,2]
[346985118,1735452635707,-965.66,0.00012978,2]
[346985119,1735452635717,-500.0,0.00012978,2]
[346985120,1735452635727,-760.47,0.00012978,2]
[346985121,1735452635736,-373.92598368,0.00012978,2]
[346985122,1735452635746,-500.0,0.00012978,2]
[346985123,1735452635755,-500.0,0.00012978,2]
[346985124,1735452635764,-170.64016106,0.00012978,2]
[346985125,1735452635774,-526.18206998,0.00012978,2]
[346985126,1735452635784,-500.0,0.00012978,2]
[346985127,1735452635794,-500.0,0.00012978,2]
[346985128,1735452635803,-500.0,0.00012978,2]
[346985129,1735452635813,-512.6607981,0.00012978,2]
[346985130,1735452635823,-500.0,0.00012978,2]
[346985131,1735452635835,-500.0,0.00012978,2]
[346985132,1735452635845,-538.66,0.00012978,2]
[346985133,1735452635855,-500.0,0.00012978,2]
[346985134,1735452635864,-500.0,0.00012978,2]
[346985135,1735452635874,-500.0,0.00012978,2]
[346985136,1735452636049,-500.0,0.00012978,2]
[346985137,1735452636059,-500.0,0.00012978,2]
[346985138,1735452636069,-938.89,0.00012978,2]
[346985139,1735452636078,-644.01,0.00012978,2]
[346985140,1735452636087,-517.43357573,0.00012978,2]
[346985141,1735452636097,-500.0,0.00012978,2]
[346985142,1735452636107,-500.0,0.00012978,2]
[346985143,1735452636116,-500.0,0.00012978,2]
[346985144,1735452636126,-1176.09,0.00012978,2]
[346985145,1735452636135,-3085.5,0.00012978,2]
[346985146,1735452636144,-500.0,0.00012978,2]
[346985147,1735452636154,-517.76179654,0.00012978,2]
[346985148,1735452636164,-500.0,0.00012978,2]
[346985149,1735452636174,-500.0,0.00012978,2]
[346985150,1735452636184,-500.0,0.00012978,2]
[346985151,1735452636194,-153.075928,0.00012978,2]
[346985152,1735452636204,-500.0,0.00012978,2]
[346985153,1735452636214,-500.0,0.00012978,2]
[346985154,1735452636223,-500.0,0.00012978,2]
[346985155,1735452636232,-1539.5,0.00012978,2]
[346985156,1735452636242,-500.0,0.00012978,2]
[346985157,1735452636251,-500.0,0.00012978,2]
[346985158,1735452636261,-309.1521783,0.00012978,2]
[346985159,1735452636271,-500.0,0.00012978,2]
[346985160,1735452636280,-317.60394296,0.00012978,2]
[346985161,1735452636289,-505.74476284,0.00012978,2]
[346985162,1735452636299,-500.0,0.00012978,2]
[346985163,1735452636308,-500.0,0.00012978,2]
[346985164,1735452636318,-500.0,0.00012978,2]
[346985165,1735452636327,-500.0,0.00012978,2]
[346985166,1735452636336,-500.0,0.00012978,2]
[346985167,1735452636346,-2769.3,0.00012978,2]
[346985168,1735452636357,-500.0,0.00012978,2]
[346985169,1735452636367,-500.0,0.00012978,2]
[346985170,1735452636376,-500.0,0.00012978,2]
[346985171,1735452636385,-500.0,0.00012978,2]
[346985172,1735452636395,-500.0,0.00012978,2]
[346985173,1735452636404,-500.0,0.00012978,2]
[346985174,1735452636414,-6108.65,0.00012978,2]
[346985175,1735452636423,-500.0,0.00012978,2]
[346985176,1735452636433,-3537.72,0.00012978,2]
[346985177,1735452636442,-500.0,0.00012978,2]
[346985178,1735452636451,-500.0,0.00012978,2]
[346985179,1735452636461,-531.36,0.00012978,2]
[346985180,1735452636470,-537.227464,0.00012978,2]
[346985181,1735452636481,-537.227464,0.00012978,2]
[346985182,1735452636490,-537.227464,0.00012978,2]
[346985183,1735452636499,-537.227464,0.00012978,2]
[346985184,1735452636509,-7297.21,0.00012978,2]
[346985185,1735452636518,-504.86647604,0.00012978,2]
[346985186,1735452636527,-500.0,0.00012978,2]
[346985187,1735452636536,-952.89,0.00012978,2]
[346985188,1735452636545,-500.0,0.00012978,2]
[346985189,1735452636554,-500.0,0.00012978,2]
[346985190,1735452636563,-537.227464,0.00012978,2]
[346985191,1735452636573,-537.227464,0.00012978,2]